bitfinex/quotes_BTCUSD_20251230
["timestamp","ask_amount","ask_price","bid_price","bid_amount"]
[1767106705148,0.13556,88985.0,88981.0,7e-07]
[1767106705731,0.13556,88983.0,88981.0,7e-07]
[1767106707015,0.13556,88982.0,88981.0,7e-07]
[1767106707135,0.14605953,88982.0,88981.0,7e-07]
[1767106708183,0.146063,88982.0,88981.0,7e-07]
[1767106710478,0.135454,88982.0,88981.0,7e-07]
[1767106711107,0.135454,88982.0,88946.0,0.0003101]
[1767106711478,0.13556,88980.0,88963.0,0.01148]
[1767106711684,0.00010664,88982.0,88946.0,0.0003101]
[1767106711685,0.13556,88978.0,88946.0,0.0003101]
[1767106711807,0.01050753,88979.0,88946.0,0.0003101]
[1767106711808,0.13556,88961.0,88946.0,0.0003101]
[1767106712008,0.13556,88959.0,88946.0,0.0003101]
[1767106712207,0.13556,88955.0,88946.0,0.0003101]
[1767106712452,0.13556,88953.0,88946.0,0.0003101]
[1767106712626,0.13556,88951.0,88946.0,0.0003101]
[1767106712825,0.01148,88961.0,88946.0,1e-07]
[1767106712826,0.13556,88949.0,88946.0,1e-07]
[1767106713026,0.13556,88947.0,88946.0,1e-07]
[1767106713228,0.14605366,88947.0,88946.0,1e-07]
[1767106713425,0.14605366,88947.0,88937.0,0.01148]
[1767106713652,0.14605366,88947.0,88910.0,0.0004]
[1767106713653,0.13556,88947.0,88910.0,0.0004]
[1767106713854,0.10549426,88966.0,88910.0,0.0004]
[1767106713855,0.13556,88945.0,88910.0,0.0004801]
[1767106714009,0.13556,88939.0,88920.0,0.0002]
[1767106715122,0.10178102,88939.0,88929.0,0.5434035]
[1767106715349,0.03023354,88960.0,88929.0,0.5434035]
[1767106715350,0.03023354,88969.0,88930.0,0.01392266]
[1767106715522,0.13556,88967.0,88940.0,0.5434035]
[1767106715725,0.13556,88965.0,88940.0,0.5434035]
[1767106715952,0.13556,88965.0,88928.0,0.01124505]
[1767106715953,0.13556,88963.0,88923.0,0.01124568]
[1767106716162,0.0003101,88974.0,88921.0,0.01124593]
[1767106716163,0.13556,88959.0,88921.0,0.01124593]
[1767106716443,0.13556,88959.0,88925.0,0.01124543]
[1767106716577,0.13556,88959.0,88930.0,0.5434035]
[1767106716772,0.13556,88959.0,88931.0,0.00247163]
[1767106717205,0.13556,88959.0,88940.0,0.5434035]
[1767106717412,0.13556,88959.0,88941.0,0.01396576]
[1767106717593,0.13556,88959.0,88941.0,0.01148]
[1767106718902,0.13556,88959.0,88926.0,0.05622619]
[1767106718903,0.13556,88959.0,88942.0,0.01148]
[1767106720504,0.13556,88959.0,88943.0,0.15025238]
[1767106720709,0.13556,88959.0,88949.0,0.5434035]
[1767106720932,0.1358701,88974.0,88949.0,0.5434035]
[1767106721144,0.1358701,88974.0,88950.0,0.00256166]
[1767106721869,0.1358701,88974.0,88950.0,0.54596516]
[1767106722001,0.1358701,88974.0,88950.0,0.5434035]
[1767106722783,0.1358701,88974.0,88940.0,0.55464703]
[1767106722960,0.1358701,88974.0,88940.0,0.5434035]
[1767106723364,0.1358701,88974.0,88941.0,0.0112434]
[1767106723566,0.1358701,88974.0,88940.0,0.55464703]
[1767106723764,0.1358701,88974.0,88939.0,0.01124366]
[1767106723994,0.1358701,88974.0,88940.0,0.5434035]
[1767106724370,0.13556,88969.0,88943.0,0.05648]
[1767106724751,0.0003101,88974.0,88944.0,0.045]
[1767106724752,0.13556,88959.0,88944.0,0.045]
[1767106724973,0.13556,88959.0,88945.0,0.01488244]
[1767106727577,0.5434035,88970.0,88945.0,0.01488244]
[1767106727578,0.1372401,88974.0,88953.0,0.01124189]
[1767106727810,0.1372401,88974.0,88960.0,0.5434035]
[1767106727811,0.13693,88974.0,88960.0,0.5434035]
[1767106728010,0.13693,88974.0,88961.0,0.01124088]
[1767106728217,0.13693,88974.0,88961.0,0.00454164]
[1767106728425,0.13693,88974.0,88962.0,0.01124075]
[1767106728634,0.00056138,88988.0,88960.0,0.61084891]
[1767106728635,1.38e-06,88988.0,88974.0,0.1477]
[1767106728853,1.38e-06,88988.0,88975.0,0.20407329]
[1767106729052,0.13693,88989.0,88976.0,0.05648]
[1767106729270,0.13693,88989.0,88976.0,0.05683594]
[1767106729513,0.1370728,88989.0,88976.0,0.05683594]
[1767106729728,0.1370728,88989.0,88960.0,0.05620501]
[1767106729729,0.00019306,88976.0,88954.0,0.01124176]
[1767106729924,0.00019306,88976.0,88958.0,0.01124125]
[1767106730148,0.1370728,88989.0,88955.0,0.06772163]
[1767106730277,0.1370728,88989.0,88955.0,0.05648]
[1767106730478,0.1370728,88989.0,88956.0,0.05648]
[1767106730817,0.14777,88987.0,88956.0,0.05648]
[1767106731231,0.14777,88979.0,88956.0,0.05648]
[1767106731779,0.14777,88979.0,88956.0,0.06772151]
[1767106731989,0.14777,88979.0,88959.0,0.01124113]
[1767106732187,0.14777,88979.0,88956.0,0.05648]
[1767106732725,0.14777,88979.0,88957.0,0.01124138]
[1767106732927,0.14777,88979.0,88956.0,0.12392905]
[1767106732928,0.147414,88979.0,88970.0,0.01123974]
[1767106733152,0.14323283,88996.0,88976.0,0.01123898]
[1767106733320,0.14323283,88996.0,88977.0,0.05644]
[1767106733526,0.14323283,88996.0,88978.0,0.00257207]
[1767106733722,0.14323283,88996.0,88978.0,0.0014482]
[1767106733948,0.14323283,88996.0,88977.0,0.05644]
[1767106735119,0.14323283,88996.0,88968.0,0.1186]
[1767106735341,0.1491,88989.0,88957.0,0.01124138]
[1767106735544,0.1491,88989.0,88948.0,0.22484857]
[1767106735545,0.1491,88989.0,88958.0,0.05644]
[1767106735747,10.9349473,89000.0,88959.0,0.05644]
[1767106735748,0.1491,88979.0,88959.0,0.05644]
[1767106736561,0.1491,88979.0,88946.0,0.01124277]
[1767106736795,0.1491,88979.0,88926.0,0.03946708]
[1767106736796,0.000106,88954.0,88920.0,0.0002]
[1767106737035,0.1491,88945.0,88928.0,0.04496]
[1767106737303,0.5434035,88946.0,88928.0,0.04496]
[1767106737304,0.1491,88939.0,88929.0,0.01148]
[1767106737875,0.1491,88939.0,88928.0,8.01e-05]
[1767106738075,0.1491,88939.0,88920.0,0.0002]
[1767106738076,0.1491,88939.0,88929.0,0.01148]
[1767106738297,0.1491,88939.0,88930.0,0.01148]
[1767106738498,0.1491,88939.0,88920.0,0.04516]
[1767106738674,0.04032013,88958.0,88920.0,0.04516]
[1767106738675,0.14376,88929.0,88920.0,0.04516]
[1767106738876,0.14386672,88929.0,88921.0,0.011399]
[1767106739082,0.14386672,88929.0,88920.0,0.05664]
[1767106739286,0.14386672,88929.0,88916.0,0.01148]
[1767106740051,0.14386672,88929.0,88916.0,4e-06]
[1767106740500,0.14168473,88929.0,88916.0,4e-06]
[1767106741553,0.14168473,88929.0,88910.0,0.0006]
[1767106741767,0.14376,88919.0,88911.0,0.00305948]
[1767106741964,0.14376,88919.0,88900.0,2.49e-06]
[1767106741965,0.01158672,88929.0,88900.0,2.49e-06]
[1767106741966,0.14376,88909.0,88900.0,2.49e-06]
[1767106743324,0.5434035,88910.0,88888.0,26.65784635]
[1767106743561,0.14376,88909.0,88889.0,0.01264326]
[1767106743761,0.14376,88909.0,88889.0,0.01148]
[1767106743961,0.14376,88909.0,88888.0,26.65784635]
[1767106744161,0.14376,88909.0,88890.0,0.01148]
[1767106744571,0.1311664,88909.0,88890.0,0.5548835]
[1767106744772,0.1311664,88909.0,88888.0,26.65784635]
[1767106744970,0.1311664,88909.0,88891.0,0.01148]
[1767106746292,0.11614568,88909.0,88899.0,0.5434035]
[1767106746436,0.11398417,88909.0,88899.0,0.5434035]
[1767106747012,0.11398417,88909.0,88891.0,0.01148]
[1767106747161,0.11398417,88909.0,88908.0,0.00051002]
[1767106747363,0.11398417,88909.0,88908.0,0.01148002]
[1767106749092,0.10923034,88909.0,88908.0,0.01148002]
[1767106749311,0.14376,88928.0,88908.0,0.01148002]
[1767106749509,0.14376,88928.0,88908.0,0.01148]
[1767106749713,0.14376,88928.0,88910.0,0.5434035]
[1767106749912,0.14376,88928.0,88908.0,0.01148]
[1767106751013,0.14325,88928.0,88918.0,0.5434035]
[1767106751220,0.14325,88928.0,88919.0,0.01148]
[1767106751824,0.14325,88928.0,88910.0,0.5434035]
[1767106752064,0.000549,88919.0,88911.0,0.05648]
[1767106752444,0.14325,88928.0,88911.0,0.05648]
[1767106754327,0.14325,88928.0,88908.0,5.0]
[1767106754648,0.14325,88928.0,88909.0,0.055931]
[1767106755287,0.14325,88928.0,88909.0,0.049931]
[1767106755550,0.14325,88928.0,88908.0,5.0]
[1767106755551,0.14376,88919.0,88908.0,4.9612414]
[1767106755734,0.14376,88919.0,88909.0,0.00588]
[1767106755942,0.14376,88919.0,88908.0,4.1947214]
[1767106755943,0.14376,88919.0,88910.0,0.00028]
[1767106756136,0.14376,88919.0,88908.0,3.91227836]
[1767106757043,0.12806631,88919.0,88908.0,3.91227836]
[1767106758165,0.12806631,88919.0,88909.0,0.01148]
[1767106758782,0.12806631,88919.0,88908.0,3.90079836]
[1767106759060,0.12806631,88919.0,88909.0,0.01148]
[1767106759305,0.12806631,88919.0,88908.0,3.90079836]
[1767106759505,0.12806631,88919.0,88910.0,0.01148]
[1767106759715,0.12806631,88919.0,88908.0,3.90079836]
[1767106759716,0.12806631,88919.0,88908.0,3.58959836]
[1767106759917,0.12806631,88919.0,88909.0,0.01148]
[1767106760132,0.01148,88928.0,88908.0,2.77827836]
[1767106760353,0.01045079,88927.0,88908.0,2.74459628]
[1767106760469,0.01148,88928.0,88908.0,2.74459628]
[1767106760676,0.01045079,88927.0,88908.0,2.74459628]
[1767106760934,0.01045099,88926.0,88908.0,2.74459628]
[1767106761170,0.01148,88928.0,88908.0,2.74459628]
[1767106761395,0.01045514,88927.0,88908.0,2.74459628]
[1767106761590,0.01148,88928.0,88908.0,2.74459628]
[1767106762128,0.79705904,88920.0,88908.0,2.74459628]
[1767106762343,0.01148,88928.0,88908.0,2.74459628]
[1767106763227,0.00010672,88929.0,88908.0,2.74459628]
[1767106763228,0.01046816,88927.0,88908.0,2.74459628]
[1767106763464,0.00074796,88930.0,88928.0,0.138589]
[1767106763632,0.045,88954.0,88928.0,0.14952]
[1767106763633,0.01148,88948.0,88928.0,0.14952]
[1767106763850,0.0002,88940.0,88928.0,0.14952]
[1767106763978,0.0002,88940.0,88930.0,0.13804]
[1767106764175,0.79705904,88960.0,88930.0,0.13804]
[1767106764419,0.79716584,88960.0,88940.0,0.0002]
[1767106764617,0.79716584,88960.0,88941.0,0.01148]
[1767106765023,0.79705904,88951.0,88941.0,0.01148]
[1767106765237,0.79716584,88960.0,88941.0,0.01148]
[1767106766230,0.79716584,88960.0,88942.0,0.01148]
[1767106766842,0.79716584,88960.0,88943.0,0.01148]
[1767106767034,0.79716584,88960.0,88944.0,0.01148]
[1767106767035,0.79705904,88950.0,88944.0,0.01148]
[1767106767240,0.79716584,88960.0,88944.0,0.01148]
[1767106768066,0.0001068,88960.0,88944.0,0.01148]
[1767106768291,0.0001068,88960.0,88944.0,0.14952]
[1767106768467,8e-07,88960.0,88944.0,0.14952]
[1767106768680,8e-07,88960.0,88946.0,0.13804]
[1767106769269,8e-07,88960.0,88947.0,0.01148]
[1767106770261,0.79705904,88980.0,88947.0,0.01148]
[1767106770262,0.82732731,88980.0,88948.0,0.13804]
[1767106770462,0.79705904,88970.0,88948.0,0.13804]
[1767106770702,0.00035593,88980.0,88949.0,0.01148]
[1767106770703,0.79705904,88960.0,88949.0,0.01148]
[1767106770905,0.03026827,88975.0,88949.0,0.01148]
[1767106770906,0.03026827,88974.0,88949.0,0.01148]
[1767106771147,0.79705904,88960.0,88948.0,0.13804]
[1767106771347,0.79705904,88960.0,88920.0,0.0002]
[1767106771348,0.79705904,88960.0,88950.0,4e-06]
[1767106772056,0.79705904,88960.0,88928.0,0.13804]
[1767106772183,0.01148,88969.0,88929.0,0.01148]
[1767106772184,0.79705904,88950.0,88929.0,0.01148]
[1767106772387,0.79705904,88950.0,88929.0,0.05648]
[1767106772589,0.79705904,88950.0,88920.0,0.0002]
[1767106772590,0.79705904,88940.0,88920.0,0.0002]
[1767106772792,0.79705904,88930.0,88900.0,0.045]
[1767106773035,0.79705904,88918.0,88900.0,1.045]
[1767106773242,0.01148,88924.0,88908.0,2.25055029]
[1767106773460,0.79705904,88918.0,88908.0,2.33829709]
[1767106773689,0.79705904,88918.0,88908.0,1.70375792]
[1767106773946,0.045,88917.0,88908.0,0.72109027]
[1767106774154,0.045,88917.0,88908.0,0.31383621]
[1767106774155,0.01148,88916.0,88908.0,0.31383621]
[1767106774413,0.01148,88916.0,88900.0,0.9776]
[1767106774603,0.01148,88916.0,88900.0,0.97214854]
[1767106774604,0.79705904,88910.0,88900.0,0.97214854]
[1767106774784,0.0056,88899.0,88888.0,26.65776438]
[1767106774983,0.80853904,88898.0,88889.0,0.13804]
[1767106775387,0.01049311,88897.0,88889.0,0.13804]
[1767106775590,0.80853904,88898.0,88889.0,0.13804]
[1767106775591,0.01049311,88896.0,88889.0,0.13804]
[1767106775792,0.80853904,88898.0,88889.0,0.13804]
[1767106775793,0.01148,88898.0,88889.0,0.13804]
[1767106776141,0.01148,88898.0,88889.0,0.12124]
[1767106776269,0.01148,88898.0,88889.0,0.07644]
[1767106776475,0.01148,88898.0,88889.0,0.03175349]
[1767106777082,0.04174827,88898.0,88889.0,0.03175349]
[1767106777448,0.04174827,88898.0,88889.0,0.02076801]
[1767106777802,0.01148,88897.0,88889.0,0.02076801]
[1767106778818,0.00746639,88897.0,88889.0,0.02076801]
[1767106779042,0.01148,88896.0,88888.0,26.65784449]
[1767106779219,0.0400926,88916.0,88889.0,0.13804]
[1767106779425,0.79705904,88910.0,88896.0,1e-08]
[1767106779772,0.79705904,88910.0,88897.0,0.12954243]
[1767106779976,0.79705904,88907.0,88897.0,0.12899343]
[1767106780118,0.01148,88906.0,88897.0,0.10603343]
[1767106780331,0.01148,88906.0,88888.0,26.65784449]
[1767106780534,0.79705904,88898.0,88888.0,25.83356674]
[1767106780739,0.01148,88897.0,88888.0,25.35133674]
[1767106781384,0.01148,88897.0,88888.0,23.00136153]
[1767106781561,0.11424524,88896.0,88888.0,22.9564982]
[1767106781885,0.012,88895.0,88888.0,21.45020728]
[1767106782096,0.012,88895.0,88888.0,20.38148468]
[1767106782255,0.11424524,88896.0,88888.0,20.09260283]
[1767106782454,0.11424524,88895.0,88888.0,19.65284789]
[1767106782636,0.11424524,88895.0,88888.0,19.38628376]
[1767106782847,0.05648,88894.0,88888.0,19.30136126]
[1767106783052,0.05648,88894.0,88888.0,18.97393122]
[1767106783273,0.79705904,88898.0,88888.0,18.97393122]
[1767106783612,0.05648,88897.0,88888.0,18.97393122]
[1767106784378,0.79705904,88898.0,88888.0,18.97393122]
[1767106784582,0.05648,88897.0,88888.0,19.11197122]
[1767106786237,0.79705904,88898.0,88888.0,19.11197122]
[1767106786376,0.01148,88896.0,88888.0,19.11197122]
[1767106786817,0.04504,88897.0,88888.0,19.11197122]
[1767106786818,0.79705904,88900.0,88889.0,0.14002]
[1767106787017,0.04504,88899.0,88889.0,0.14002]
[1767106787181,0.04504,88898.0,88889.0,0.14002]
[1767106787376,0.79705904,88910.0,88889.0,0.14002]
[1767106787763,0.06695603,88909.0,88889.0,0.14002]
[1767106787892,0.79705904,88900.0,88889.0,0.14002]
[1767106788097,0.02191603,88899.0,88889.0,0.14002]
[1767106788305,0.01043603,88898.0,88889.0,0.14002]
[1767106788739,0.01043603,88898.0,88889.0,0.02733685]
[1767106789111,0.08189751,88897.0,88889.0,0.02733685]
[1767106789372,0.01043603,88896.0,88889.0,0.13961817]
[1767106789587,0.01043603,88895.0,88889.0,0.13961817]
[1767106789758,0.01043603,88894.0,88889.0,0.13961817]
[1767106789968,0.01043603,88893.0,88889.0,0.13961817]
[1767106790188,0.01043603,88892.0,88889.0,0.13961817]
[1767106790396,0.04084057,88930.0,88889.0,0.14002]
[1767106790397,0.0520926,88928.0,88889.0,0.14002]
[1767106790515,0.00074797,88930.0,88889.0,0.14002]
[1767106790516,0.012,88926.0,88889.0,0.14002]
[1767106790961,0.012,88926.0,88891.0,0.14002]
[1767106791588,0.04081102,88925.0,88910.0,0.79705904]
[1767106791749,0.01148,88924.0,88910.0,0.79665902]
[1767106791953,0.00074797,88930.0,88911.0,0.14002]
[1767106792184,0.00074797,88930.0,88920.0,0.79705904]
[1767106792389,0.01148,88929.0,88921.0,0.14002]
[1767106792926,0.01148,88929.0,88921.0,0.13947]
[1767106793449,0.01148,88929.0,88889.0,0.14002]
[1767106793450,0.0057268,88928.0,88889.0,0.14002]
[1767106793638,0.01148,88929.0,88896.0,0.14002]
[1767106794161,0.79705904,88920.0,88896.0,0.14002]
[1767106794361,0.0400926,88928.0,88896.0,0.14002]
[1767106794651,0.05652,88927.0,88896.0,0.14002]
[1767106795191,0.79705904,88920.0,88896.0,0.14002]
[1767106795540,0.00074797,88930.0,88889.0,8.011e-05]
[1767106795541,0.05652,88919.0,88911.0,0.14002]
[1767106797988,0.00074797,88930.0,88911.0,0.14002]
[1767106798162,0.04504,88927.0,88910.0,0.14002]
[1767106799977,0.04504,88927.0,88910.0,0.139471]
[1767106800177,0.0400926,88926.0,88910.0,0.139471]
[1767106800337,0.0400926,88922.0,88910.0,0.139471]
[1767106800539,0.1053685,88927.0,88890.0,0.1385]
[1767106800540,0.0400926,88920.0,88890.0,0.1385]
[1767106800772,0.0400926,88913.0,88890.0,0.1385]
[1767106800937,0.0400926,88911.0,88890.0,0.1385]
[1767106801155,0.01148,88912.0,88890.0,0.1385]
[1767106801482,0.0400926,88905.0,88890.0,0.1385]
[1767106801719,0.0400926,88905.0,88891.0,0.1385]
[1767106801720,0.0400926,88900.0,88891.0,0.1385]
[1767106801922,0.05652,88904.0,88891.0,0.1385]
[1767106801923,0.0400926,88911.0,88891.0,0.1385]
[1767106802126,0.0400926,88918.0,88901.0,0.1385]
[1767106802336,0.0505996,88917.0,88909.0,0.1385]
[1767106802540,0.0603285,88940.0,88909.0,0.13860684]
[1767106802747,0.06050665,88943.0,88921.0,0.1385]
[1767106802919,0.79705904,88990.0,88930.0,0.79705904]
[1767106802920,0.0002,88940.0,88930.0,0.79705904]
[1767106803060,0.79705904,88990.0,88930.0,0.79705904]
[1767106803061,0.01148,88958.0,88944.0,0.1385]
[1767106803273,11.73200634,89000.0,88949.0,0.1385]
[1767106803274,0.01148,88964.0,88949.0,0.1385]
[1767106803477,0.01148,88964.0,88943.0,0.001099]
[1767106803478,0.01148,88963.0,88951.0,0.1385]
[1767106803724,0.04504,88983.0,88954.0,0.1385]
[1767106803902,0.04504,88983.0,88928.0,0.12984505]
[1767106803903,10.9349473,89000.0,88971.0,0.1385]
[1767106804103,10.9349473,89000.0,88982.0,0.79705904]
[1767106804307,10.9349473,89000.0,88955.0,0.03482727]
[1767106804308,11.73211313,89000.0,88974.0,0.01148]
[1767106804542,10.93395509,89000.0,88990.0,0.79705904]
[1767106804707,10.4822935,89000.0,88991.0,0.01148]
[1767106804907,9.7322935,89000.0,88991.0,0.01148]
[1767106805102,7.83703215,89000.0,88991.0,0.01148]
[1767106805354,7.23703215,89000.0,88993.0,0.01123683]
[1767106805580,7.23703215,89000.0,88991.0,0.01148]
[1767106805581,6.51735404,89000.0,88995.0,0.1186]
[1767106805739,6.1835853,89000.0,88996.0,0.06771646]
[1767106805946,6.1835853,89000.0,88996.0,0.05648]
[1767106805947,4.64264584,89000.0,88996.0,0.05648]
[1767106806150,4.64264584,89000.0,88998.0,0.05618103]
[1767106806151,3.52078374,89000.0,88998.0,0.05618103]
[1767106806354,1.25996969,89000.0,88999.0,0.1186]
[1767106806551,0.0002,89003.0,89000.0,0.06741572]
[1767106806736,0.1477,89042.0,89013.0,0.79705904]
[1767106806914,0.0119085,89039.0,89013.0,0.79705904]
[1767106807118,0.1477,89024.0,89014.0,0.01148]
[1767106807403,0.0004285,89039.0,89014.0,0.01148]
[1767106807533,0.00053527,89039.0,89014.0,0.01148]
[1767106807922,0.00053527,89039.0,89029.0,0.79705904]
[1767106808379,0.00053527,89039.0,89027.0,0.01148]
[1767106808534,0.00053527,89039.0,89029.0,0.79705904]
[1767106808741,0.00034334,89030.0,89029.0,0.79705904]
[1767106808979,0.00034334,89030.0,89003.0,0.01123557]
[1767106809182,0.15918,89029.0,88978.0,0.01123873]
[1767106809528,0.00053527,89039.0,88974.0,0.01123923]
[1767106809529,0.01201527,89039.0,89019.0,0.79705904]
[1767106809744,0.00053527,89039.0,89029.0,0.79705904]
[1767106809915,0.00053527,89039.0,89020.0,0.80853904]
[1767106810115,0.00053527,89039.0,89029.0,0.79705904]
[1767106810460,0.04322246,89107.0,89029.0,0.79705904]
[1767106810461,0.01148,89049.0,89029.0,0.79705904]
[1767106810659,0.15918,89056.0,89030.0,0.80853904]
[1767106810977,0.15918,89056.0,89040.0,0.79705904]
[1767106811179,0.15918,89056.0,89030.0,0.02271216]
[1767106811180,0.15918,89056.0,89030.0,0.01148]
[1767106811403,0.1477,89056.0,89030.0,0.80853904]
[1767106811611,0.1477,89056.0,89046.0,0.79705904]
[1767106811811,0.1477,89056.0,89030.0,0.01148]
[1767106811812,0.1477,89056.0,89043.0,0.01148]
[1767106812018,0.1477,89056.0,89046.0,0.79705904]
[1767106812220,0.1477,89056.0,89029.0,0.00010677]
[1767106812221,0.1477,89078.0,89055.0,0.79705904]
[1767106812423,0.1477,89078.0,89041.0,0.05615329]
[1767106812424,0.1477,89075.0,89056.0,0.01148]
[1767106812591,0.1477,89075.0,89060.0,0.79705904]
[1767106812791,0.1477,89075.0,89040.0,0.80828994]
[1767106812792,0.1477,89075.0,89040.0,0.79705904]
[1767106813114,0.1477,89075.0,89060.0,0.79705904]
[1767106813315,0.1477,89075.0,89050.0,0.01122964]
[1767106813316,0.1477,89075.0,89051.0,0.01148]
[1767106813317,0.15918,89075.0,89051.0,0.01148]
[1767106813531,0.02,89100.0,89062.0,0.01122813]
[1767106813729,0.02,89100.0,89048.0,0.01122989]
[1767106813730,0.14805569,89090.0,89048.0,0.01122989]
[1767106814086,0.14805569,89090.0,89040.0,0.79705904]
[1767106814087,0.14805569,89090.0,89080.0,0.79705904]
[1767106814300,0.14805569,89090.0,89069.0,0.01148]
[1767106814504,0.14805569,89090.0,89070.0,0.79705904]
[1767106814505,0.000549,89080.0,89070.0,0.79705904]
[1767106814708,0.14805569,89090.0,89070.0,0.54138403]
[1767106814883,0.14805569,89090.0,89064.0,0.01148]
[1767106814884,0.14805569,89090.0,89080.0,0.54138403]
[1767106815042,0.1477,89090.0,89080.0,0.54138403]
[1767106815243,0.00051811,89081.0,89080.0,0.54138403]
[1767106815582,0.00051811,89081.0,89075.0,0.01144]
[1767106815974,0.1477,89090.0,89075.0,0.01144]
[1767106816186,0.1477,89090.0,89060.0,0.01122838]
[1767106816187,0.000549,89075.0,89060.0,0.54138403]
[1767106816357,0.13646,89079.0,89060.0,0.54138403]
[1767106816522,0.13646,89079.0,89060.0,0.54173972]
[1767106816723,0.13646,89079.0,89069.0,0.54138403]
[1767106816927,0.01144,89091.0,89069.0,0.55282403]
[1767106817128,0.1479,89091.0,89063.0,0.01144]
[1767106817412,0.1479,89091.0,89070.0,0.54118403]
[1767106817617,0.14825569,89091.0,89070.0,0.54118403]
[1767106817814,0.14825569,89091.0,89070.0,0.54138403]
[1767106818106,0.14825569,89091.0,89045.0,0.01123027]
[1767106818279,0.000549,89070.0,89051.0,0.01144]
[1767106818535,0.14825569,89091.0,89034.0,0.04496]
[1767106818536,0.1479,89078.0,89034.0,0.04496]
[1767106818736,0.1479,89078.0,89046.0,0.01144]
[1767106819233,0.1479,89078.0,89030.0,0.05634264]
[1767106819234,0.13666,89050.0,89030.0,0.0001821]
[1767106819424,0.13666,89050.0,88989.0,0.0006821]
[1767106819425,0.01144,89049.0,89040.0,1.8e-05]
[1767106819628,0.0002,89060.0,89040.0,0.54140203]
[1767106819629,0.13646,89048.0,89040.0,0.54140203]
[1767106819851,0.01144,89053.0,89040.0,0.54140203]
[1767106820037,0.13646,89070.0,89040.0,0.54140203]
[1767106820038,0.13646,89070.0,89043.0,0.54138403]
[1767106820238,0.13646,89070.0,89050.0,0.54138403]
[1767106820239,0.01144,89069.0,89050.0,0.54138403]
[1767106820558,0.01144,89069.0,89059.0,0.54158403]
[1767106820850,0.01144,89069.0,89059.0,0.54154247]
[1767106820978,0.01144,89069.0,89059.0,0.00015844]
[1767106821185,0.01144,89069.0,89050.0,0.00010675]
[1767106821186,0.13666856,89059.0,89050.0,0.00010675]
[1767106821377,0.13646,89059.0,89050.0,0.00010675]
[1767106821578,0.13646,89059.0,89040.0,0.0112489]
[1767106821579,0.13646,89059.0,89040.0,1.8e-05]
[1767106821777,0.54138403,89050.0,89040.0,1.8e-05]
[1767106821993,0.54138403,89050.0,89005.0,0.04940989]
[1767106821994,0.54138403,89050.0,89035.0,0.01144]
[1767106822201,0.39138403,89045.0,89035.0,0.01154677]
[1767106822403,0.54138403,89045.0,89035.0,0.01154677]
[1767106822611,0.54138403,89045.0,89035.0,0.0227783]
[1767106822807,0.54138403,89045.0,89035.0,0.01154677]
[1767106823374,0.13646,89059.0,89035.0,0.01154677]
[1767106823606,0.54138403,89070.0,89050.0,0.05614788]
[1767106823754,0.54138403,89060.0,89049.0,0.01144]
[1767106823962,0.54138403,89059.0,89049.0,0.01139721]
[1767106824355,0.54138403,89059.0,89047.0,0.01123002]
[1767106824535,0.54138403,89059.0,89053.0,0.01122926]
[1767106824769,0.54138403,89059.0,89048.0,0.01122989]
[1767106824770,0.54138403,89063.0,89049.0,0.01122977]
[1767106824967,0.54138403,89059.0,89045.0,0.02267027]
[1767106825332,0.13646,89074.0,89045.0,0.01144]
[1767106825528,0.54138403,89055.0,89036.0,0.06738837]
[1767106825730,0.13646,89074.0,89021.0,0.04940989]
[1767106825731,0.54138403,89050.0,89040.0,0.0112309]
[1767106825955,0.54138403,89050.0,89042.0,0.01123065]
[1767106826158,0.54138403,89050.0,89041.0,0.01123078]
[1767106826356,0.54138403,89050.0,89039.0,0.01123103]
[1767106826588,0.54138403,89050.0,89040.0,0.0112309]
[1767106826732,0.54138403,89050.0,89041.0,0.01123078]
[1767106826932,0.54138403,89050.0,89040.0,0.0112309]
[1767106827159,0.01144,89065.0,89047.0,0.01123002]
[1767106827357,0.01144,89065.0,89037.0,0.01144]
[1767106827358,0.01144,89065.0,89050.0,0.05614822]
[1767106827553,0.01144,89065.0,89046.0,0.01123015]
[1767106827760,0.54138403,89060.0,89047.0,0.00049412]
[1767106828446,0.54138403,89060.0,89043.0,0.05615245]
[1767106828447,0.54138403,89057.0,89038.0,0.01123115]
[1767106828639,0.54138403,89051.0,89030.0,0.0002]
[1767106828873,0.13646,89044.0,89030.0,0.0002]
[1767106829148,0.01144,89056.0,89037.0,0.01123128]
[1767106829344,0.01144,89056.0,89036.0,0.01123141]
[1767106829551,0.13646,89055.0,89035.0,0.00010677]
[1767106830118,0.01144,89056.0,88988.0,0.46149624]
[1767106830119,0.13646,89034.0,89015.0,0.01123406]
[1767106830480,0.13646,89034.0,89000.0,0.04496]
[1767106830481,0.13656661,89034.0,89025.0,0.0002]
[1767106830605,0.13656661,89034.0,88997.0,0.01123633]
[1767106830820,0.13656661,89034.0,88992.0,0.07886166]
[1767106831067,0.13656661,89034.0,88996.0,0.01123646]
[1767106831267,0.13656661,89034.0,88992.0,0.01144]
[1767106831268,0.13646,89032.0,88998.0,0.0112362]
[1767106831472,0.13646,89032.0,88992.0,0.01144]
[1767106831684,0.13646,89032.0,88989.0,0.0006821]
[1767106831883,0.13646,89032.0,89005.0,0.01123532]
[1767106832124,0.00010661,89034.0,89010.0,0.01123469]
[1767106832125,0.13646,89031.0,89010.0,0.01123469]
[1767106832329,0.01144,89030.0,89014.0,0.01123418]
[1767106832504,0.01144,89030.0,89015.0,0.01341335]
[1767106832683,0.01144,89030.0,89015.0,0.00217929]
[1767106832884,0.13646,89029.0,89015.0,0.00217929]
[1767106833135,0.13646,89029.0,89006.0,0.01123519]
[1767106833361,0.13646,89029.0,89005.0,0.01144]
[1767106833596,0.13646,89029.0,89007.0,0.00105597]
[1767106833760,0.13646,89029.0,89005.0,0.01144]
[1767106833986,0.13646,89029.0,89011.0,0.01123456]
[1767106834146,0.13646,89029.0,89013.0,0.01123431]
[1767106834309,0.01144,89028.0,89011.0,0.01123456]
[1767106834509,0.13646,89027.0,89004.0,0.01123545]
[1767106834710,0.13646,89027.0,88974.0,0.33717428]
[1767106834711,0.13646,89025.0,88975.0,0.02884492]
[1767106834918,0.13646,89025.0,88935.0,0.14296878]
[1767106834919,0.13646,89003.0,88989.0,0.0001321]
[1767106835118,0.000549,89004.0,88989.0,0.0001321]
[1767106835119,0.13646,88998.0,88989.0,0.0001321]
[1767106835319,0.0002,88999.0,88989.0,0.0001321]
[1767106835320,0.13646,88996.0,88989.0,0.0001321]